[Event "Early-Titled-Tuesday-Blitz-November-28-2023"]
[Site "Chess.com"]
[Date "2023.11.28"]
[Round "10"]
[White "pinguino120"]
[Black "secretsuperstar7"]
[Result "0-1"]
[WhiteElo "2297"]
[BlackElo "2452"]
[TimeControl "180+1"]
[EndTime "9:59:27 PST"]
[Termination "secretsuperstar7 won by checkmate"]

1. e4 {[%clk 0:03:00.9]} 1... c5 {[%clk 0:02:57.4]} 2. Nf3 {[%clk 0:03:00.4]}
2... d6 {[%clk 0:02:56.7]} 3. d4 {[%clk 0:02:57]} 3... cxd4 {[%clk 0:02:55.9]}
4. Nxd4 {[%clk 0:02:57.9]} 4... Nf6 {[%clk 0:02:56]} 5. Nc3 {[%clk 0:02:58.5]}
5... Nc6 {[%clk 0:02:55.9]} 6. Bg5 {[%clk 0:02:56.2]} 6... e6 {[%clk 0:02:56.1]}
7. Qd2 {[%clk 0:02:52.9]} 7... a6 {[%clk 0:02:56.4]} 8. O-O-O {[%clk 0:02:50.2]}
8... Bd7 {[%clk 0:02:55.8]} 9. f4 {[%clk 0:02:49]} 9... b5 {[%clk 0:02:55.1]}
10. Bxf6 {[%clk 0:02:40.1]} 10... gxf6 {[%clk 0:02:49.1]} 11. f5 {[%clk
0:02:39]} 11... b4 {[%clk 0:02:45.4]} 12. Nce2 {[%clk 0:02:35.8]} 12... e5
{[%clk 0:02:36.8]} 13. Nxc6 {[%clk 0:02:34]} 13... Bxc6 {[%clk 0:02:36.9]} 14.
Ng3 {[%clk 0:02:34.6]} 14... h5 {[%clk 0:02:34.3]} 15. Kb1 {[%clk 0:02:32.9]}
15... h4 {[%clk 0:02:33.5]} 16. Ne2 {[%clk 0:02:19.3]} 16... a5 {[%clk
0:02:31.1]} 17. Qd3 {[%clk 0:02:08.3]} 17... a4 {[%clk 0:02:19.7]} 18. Nc1
{[%clk 0:02:08.1]} 18... Qb6 {[%clk 0:02:08.7]} 19. Be2 {[%clk 0:01:58.2]} 19...
a3 {[%clk 0:02:00.9]} 20. b3 {[%clk 0:01:54.8]} 20... Ra5 {[%clk 0:01:55.4]} 21.
Qd2 {[%clk 0:01:45.5]} 21... Rc5 {[%clk 0:01:46.6]} 22. Nd3 {[%clk 0:01:44.9]}
22... Rc3 {[%clk 0:01:45.1]} 23. Qe1 {[%clk 0:01:29.5]} 23... Qd4 {[%clk
0:01:38.4]} 24. Nxb4 {[%clk 0:01:13.1]} 24... Rxb3+ {[%clk 0:01:21.1]} 25. Kc1
{[%clk 0:01:07.8]} 25... Bh6+ {[%clk 0:01:17.3]} 26. Rd2 {[%clk 0:01:06.2]}
26... Qa1# {[%clk 0:01:16.8]} 0-1

[Event "Early-Titled-Tuesday-Blitz-November-28-2023"]
[Site "Chess.com"]
[Date "2023.11.28"]
[Round "10"]
[White "Sofia_Blokhin"]
[Black "abelmat"]
[Result "1-0"]
[WhiteElo "2277"]
[BlackElo "1979"]
[TimeControl "180+1"]
[EndTime "9:59:43 PST"]
[Termination "Sofia_Blokhin won by checkmate"]

1. d4 {[%clk 0:03:00.9]} 1... d5 {[%clk 0:02:58.2]} 2. c4 {[%clk 0:02:58.3]}
2... e6 {[%clk 0:02:57.7]} 3. Nc3 {[%clk 0:02:56.9]} 3... Nf6 {[%clk 0:02:57.9]}
4. Nf3 {[%clk 0:02:56]} 4... Be7 {[%clk 0:02:58.1]} 5. e3 {[%clk 0:02:56.1]}
5... Nbd7 {[%clk 0:02:56.6]} 6. cxd5 {[%clk 0:02:56]} 6... exd5 {[%clk
0:02:56.2]} 7. Bd3 {[%clk 0:02:55.9]} 7... O-O {[%clk 0:02:55.7]} 8. O-O {[%clk
0:02:55.8]} 8... c6 {[%clk 0:02:56]} 9. Ne5 {[%clk 0:02:55.1]} 9... Re8 {[%clk
0:02:51.4]} 10. f4 {[%clk 0:02:54.1]} 10... c5 {[%clk 0:02:33.9]} 11. h3 {[%clk
0:02:41.1]} 11... Nf8 {[%clk 0:02:30.2]} 12. g4 {[%clk 0:02:33.8]} 12... Ne6
{[%clk 0:02:20.7]} 13. g5 {[%clk 0:02:29.2]} 13... Nd7 {[%clk 0:02:00.3]} 14.
Bxh7+ {[%clk 0:02:19.9]} 14... Kf8 {[%clk 0:01:34.9]} 15. Qh5 {[%clk 0:02:03.5]}
15... Nxe5 {[%clk 0:00:50.9]} 16. fxe5 {[%clk 0:02:02.1]} 16... f5 {[%clk
0:00:24.2]} 17. Rxf5+ {[%clk 0:01:55.6]} 17... Bf6 {[%clk 0:00:23.7]} 18. gxf6
{[%clk 0:01:47.6]} 18... Nxd4 {[%clk 0:00:17.4]} 19. fxg7+ {[%clk 0:01:43.9]}
19... Ke7 {[%clk 0:00:17.1]} 20. Qf7# {[%clk 0:01:42.9]} 1-0

[Event "Early-Titled-Tuesday-Blitz-November-28-2023"]
[Site "Chess.com"]
[Date "2023.11.28"]
[Round "10"]
[White "NovozhilovSemen"]
[Black "koncheto"]
[Result "1-0"]
[WhiteElo "2710"]
[BlackElo "2522"]
[TimeControl "180+1"]
[EndTime "9:59:47 PST"]
[Termination "NovozhilovSemen won by resignation"]

1. d4 {[%clk 0:02:59.1]} 1... Nf6 {[%clk 0:02:57.4]} 2. Nf3 {[%clk 0:02:51.2]}
2... e6 {[%clk 0:02:57]} 3. e3 {[%clk 0:02:51.4]} 3... c5 {[%clk 0:02:57.9]} 4.
Bd3 {[%clk 0:02:49.9]} 4... d5 {[%clk 0:02:58.3]} 5. b3 {[%clk 0:02:50.1]} 5...
Bd6 {[%clk 0:02:58.9]} 6. O-O {[%clk 0:02:50.1]} 6... Qc7 {[%clk 0:02:59.5]} 7.
Bb2 {[%clk 0:02:49.2]} 7... Nbd7 {[%clk 0:03:00]} 8. c4 {[%clk 0:02:48.6]} 8...
dxc4 {[%clk 0:02:58.8]} 9. bxc4 {[%clk 0:02:48.6]} 9... O-O {[%clk 0:02:59.5]}
10. Nc3 {[%clk 0:02:48.5]} 10... a6 {[%clk 0:02:59.1]} 11. d5 {[%clk 0:02:48.7]}
11... Ne5 {[%clk 0:02:57.9]} 12. Nxe5 {[%clk 0:02:44.2]} 12... Bxe5 {[%clk
0:02:58.4]} 13. f4 {[%clk 0:02:44]} 13... Bd6 {[%clk 0:02:58.7]} 14. Ne2 {[%clk
0:02:37.6]} 14... exd5 {[%clk 0:02:49.4]} 15. Bxf6 {[%clk 0:02:37.1]} 15... dxc4
{[%clk 0:02:48.1]} 16. Bc2 {[%clk 0:02:22]} 16... gxf6 {[%clk 0:02:44.6]} 17.
Ng3 {[%clk 0:02:22.5]} 17... Re8 {[%clk 0:02:14.8]} 18. Qh5 {[%clk 0:02:20.9]}
18... Rxe3 {[%clk 0:02:07.1]} 19. Qxh7+ {[%clk 0:02:15.1]} 19... Kf8 {[%clk
0:02:07.5]} 20. Rae1 {[%clk 0:02:13.3]} 20... Bxf4 {[%clk 0:02:05.3]} 21. Nh5
{[%clk 0:01:45.5]} 21... Ke7 {[%clk 0:01:42.4]} 22. Nxf4 {[%clk 0:01:40.1]}
22... Qxf4 {[%clk 0:01:34.1]} 23. Rxf4 {[%clk 0:01:39]} 23... Rxe1+ {[%clk
0:01:34.7]} 24. Kf2 {[%clk 0:01:39.4]} 24... Rc1 {[%clk 0:01:34]} 25. Rxc4
{[%clk 0:01:33.4]} 25... Be6 {[%clk 0:01:33.7]} 26. Rxc5 {[%clk 0:01:33.2]}
26... Rd8 {[%clk 0:01:33]} 27. Rc7+ {[%clk 0:01:30.9]} 27... Kd6 {[%clk
0:01:30.9]} 28. Rc3 {[%clk 0:01:29.9]} 28... Ke7 {[%clk 0:01:29.7]} 29. Qh6
{[%clk 0:01:29.8]} 29... Rdd1 {[%clk 0:01:16.7]} 30. Rc7+ {[%clk 0:01:17.2]}
30... Kd8 {[%clk 0:01:15.8]} 31. Bxd1 {[%clk 0:01:15.1]} 31... Rxc7 {[%clk
0:01:13.7]} 32. Qxf6+ {[%clk 0:01:15.2]} 32... Ke8 {[%clk 0:01:11.7]} 33. h4
{[%clk 0:01:14.8]} 33... Rc1 {[%clk 0:01:10.9]} 34. Bb3 {[%clk 0:01:14.9]} 1-0

[Event "Early-Titled-Tuesday-Blitz-November-28-2023"]
[Site "Chess.com"]
[Date "2023.11.28"]
[Round "10"]
[White "Zainullina_Nataliya"]
[Black "carloseduar100"]
[Result "1-0"]
[WhiteElo "2216"]
[BlackElo "2266"]
[TimeControl "180+1"]
[EndTime "9:59:52 PST"]
[Termination "Zainullina_Nataliya won by resignation"]

1. Nf3 {[%clk 0:02:47.7]} 1... Nf6 {[%clk 0:02:59.2]} 2. b3 {[%clk 0:02:47]}
2... b6 {[%clk 0:02:55.5]} 3. Bb2 {[%clk 0:02:44.4]} 3... Bb7 {[%clk 0:02:46.8]}
4. e3 {[%clk 0:02:44.3]} 4... g6 {[%clk 0:02:35.5]} 5. Be2 {[%clk 0:02:43.3]}
5... Bg7 {[%clk 0:02:29.7]} 6. O-O {[%clk 0:02:43]} 6... O-O {[%clk 0:02:29.6]}
7. c4 {[%clk 0:02:42.9]} 7... d6 {[%clk 0:02:29.9]} 8. Nc3 {[%clk 0:02:42]} 8...
Nbd7 {[%clk 0:02:28.9]} 9. d4 {[%clk 0:02:41.6]} 9... e5 {[%clk 0:02:29.2]} 10.
dxe5 {[%clk 0:02:40.4]} 10... Nxe5 {[%clk 0:02:29]} 11. Nxe5 {[%clk 0:02:19.9]}
11... dxe5 {[%clk 0:02:29.9]} 12. Qxd8 {[%clk 0:02:15.8]} 12... Raxd8 {[%clk
0:02:30.8]} 13. Rfd1 {[%clk 0:02:15.2]} 13... a6 {[%clk 0:02:28.3]} 14. Rxd8
{[%clk 0:02:06.6]} 14... Rxd8 {[%clk 0:02:29.2]} 15. Rd1 {[%clk 0:02:06.7]}
15... Rxd1+ {[%clk 0:02:28.8]} 16. Nxd1 {[%clk 0:02:02.8]} 16... Nd7 {[%clk
0:02:28.2]} 17. f3 {[%clk 0:01:59]} 17... e4 {[%clk 0:02:26.7]} 18. Bxg7 {[%clk
0:01:55.9]} 18... exf3 {[%clk 0:02:25.9]} 19. Bxf3 {[%clk 0:01:53.3]} 19... Bxf3
{[%clk 0:02:25.2]} 20. gxf3 {[%clk 0:01:52.5]} 20... Kxg7 {[%clk 0:02:25.7]} 21.
Kf2 {[%clk 0:01:52.3]} 21... Kf6 {[%clk 0:02:24.9]} 22. Nc3 {[%clk 0:01:51.4]}
22... Ke6 {[%clk 0:02:24.1]} 23. e4 {[%clk 0:01:44.6]} 23... f5 {[%clk
0:02:23.3]} 24. Ke3 {[%clk 0:01:44.2]} 24... Ke5 {[%clk 0:02:17.5]} 25. f4+
{[%clk 0:01:40.8]} 25... Ke6 {[%clk 0:02:17.7]} 26. e5 {[%clk 0:01:16.9]} 26...
g5 {[%clk 0:02:16]} 27. Nd5 {[%clk 0:01:11.9]} 27... gxf4+ {[%clk 0:01:35.7]}
28. Kxf4 {[%clk 0:01:10.6]} 28... Nxe5 {[%clk 0:01:35.4]} 29. Nxc7+ {[%clk
0:01:10.1]} 29... Kf6 {[%clk 0:01:35.9]} 30. Nd5+ {[%clk 0:01:04.1]} 30... Kg6
{[%clk 0:01:33]} 31. Kxe5 {[%clk 0:01:03.2]} 31... Kg5 {[%clk 0:01:30.6]} 32.
Nxb6 {[%clk 0:01:00.9]} 32... Kg4 {[%clk 0:01:30.4]} 33. Nd5 {[%clk 0:01:00.7]}
33... h5 {[%clk 0:01:30.4]} 34. c5 {[%clk 0:01:00.3]} 1-0

[Event "Early-Titled-Tuesday-Blitz-November-28-2023"]
[Site "Chess.com"]
[Date "2023.11.28"]
[Round "10"]
[White "DonCiao"]
[Black "deepfear"]
[Result "0-1"]
[WhiteElo "2100"]
[BlackElo "1930"]
[TimeControl "180+1"]
[EndTime "10:00:14 PST"]
[Termination "deepfear won by checkmate"]

1. c4 {[%clk 0:03:00.9]} 1... g6 {[%clk 0:02:57.5]} 2. g3 {[%clk 0:02:59.5]}
2... Bg7 {[%clk 0:02:57.7]} 3. Bg2 {[%clk 0:03:00.1]} 3... d6 {[%clk 0:02:56.2]}
4. Nc3 {[%clk 0:03:00.2]} 4... e5 {[%clk 0:02:55.1]} 5. e4 {[%clk 0:03:00.1]}
5... Nf6 {[%clk 0:02:40.9]} 6. Nge2 {[%clk 0:02:59.5]} 6... Nc6 {[%clk
0:02:40.7]} 7. O-O {[%clk 0:02:59.1]} 7... O-O {[%clk 0:02:33.1]} 8. d3 {[%clk
0:02:58.5]} 8... Bg4 {[%clk 0:02:31.5]} 9. h3 {[%clk 0:02:58.2]} 9... Bxe2
{[%clk 0:02:31.4]} 10. Qxe2 {[%clk 0:02:48]} 10... Nd4 {[%clk 0:02:31.3]} 11.
Qd1 {[%clk 0:02:47.7]} 11... Qd7 {[%clk 0:02:14.3]} 12. Be3 {[%clk 0:02:46.8]}
12... a6 {[%clk 0:02:08]} 13. f4 {[%clk 0:02:46.2]} 13... Nh5 {[%clk 0:02:02.9]}
14. Kh2 {[%clk 0:02:35.4]} 14... exf4 {[%clk 0:01:50.4]} 15. gxf4 {[%clk
0:02:34.6]} 15... Qe7 {[%clk 0:01:39.4]} 16. Nd5 {[%clk 0:02:22.4]} 16... Qd8
{[%clk 0:00:58.4]} 17. f5 {[%clk 0:02:01.1]} 17... Be5+ {[%clk 0:00:49]} 18. Kg1
{[%clk 0:01:59.5]} 18... c6 {[%clk 0:00:48.3]} 19. Nf4 {[%clk 0:01:53.8]} 19...
Qh4 {[%clk 0:00:37.9]} 20. Nxh5 {[%clk 0:01:49.5]} 20... gxh5 {[%clk 0:00:28.5]}
21. Bf2 {[%clk 0:01:46.5]} 21... Qf4 {[%clk 0:00:24.6]} 22. Re1 {[%clk
0:01:37.4]} 22... Qh2+ {[%clk 0:00:20.3]} 23. Kf1 {[%clk 0:01:37.1]} 23... Kh8
{[%clk 0:00:18.7]} 24. Bxd4 {[%clk 0:01:20.3]} 24... Bxd4 {[%clk 0:00:17.7]} 25.
Qf3 {[%clk 0:01:20.9]} 25... Rg8 {[%clk 0:00:16.5]} 26. Re2 {[%clk 0:01:20]}
26... Qg1# {[%clk 0:00:16.1]} 0-1

[Event "Early-Titled-Tuesday-Blitz-November-28-2023"]
[Site "Chess.com"]
[Date "2023.11.28"]
[Round "10"]
[White "guillembaches"]
[Black "HanSchut"]
[Result "1-0"]
[WhiteElo "2504"]
[BlackElo "2269"]
[TimeControl "180+1"]
[EndTime "10:00:20 PST"]
[Termination "guillembaches won by resignation"]

1. d4 {[%clk 0:03:00.9]} 1... Nf6 {[%clk 0:02:33.2]} 2. Nf3 {[%clk 0:03:00.8]}
2... g6 {[%clk 0:02:32.9]} 3. Bg5 {[%clk 0:03:01.2]} 3... Bg7 {[%clk 0:02:33.3]}
4. Nbd2 {[%clk 0:03:01.8]} 4... d5 {[%clk 0:02:33.3]} 5. e3 {[%clk 0:03:02.1]}
5... O-O {[%clk 0:02:33.1]} 6. Be2 {[%clk 0:03:02.7]} 6... c5 {[%clk 0:02:33.1]}
7. c3 {[%clk 0:03:02.5]} 7... cxd4 {[%clk 0:02:34]} 8. exd4 {[%clk 0:03:03.2]}
8... Nc6 {[%clk 0:02:34.3]} 9. O-O {[%clk 0:03:03.2]} 9... Ne4 {[%clk
0:02:31.2]} 10. Bh4 {[%clk 0:02:57.9]} 10... Nxd2 {[%clk 0:02:30]} 11. Qxd2
{[%clk 0:02:56.1]} 11... Bg4 {[%clk 0:02:24.7]} 12. Rfe1 {[%clk 0:02:56]} 12...
Qd7 {[%clk 0:01:59.1]} 13. Bg3 {[%clk 0:02:50.7]} 13... Rac8 {[%clk 0:01:55.7]}
14. h3 {[%clk 0:02:47.7]} 14... Bf5 {[%clk 0:01:55.2]} 15. Nh4 {[%clk
0:02:25.7]} 15... Be6 {[%clk 0:01:47.3]} 16. Bf1 {[%clk 0:02:17.8]} 16... a6
{[%clk 0:01:46.6]} 17. b4 {[%clk 0:02:11.2]} 17... Rfe8 {[%clk 0:01:24.5]} 18.
a4 {[%clk 0:02:10.5]} 18... Nd8 {[%clk 0:01:12.7]} 19. a5 {[%clk 0:02:05.8]}
19... Qc6 {[%clk 0:01:12.5]} 20. Rac1 {[%clk 0:02:02.5]} 20... f6 {[%clk
0:01:12.5]} 21. Qb2 {[%clk 0:01:17]} 21... Bd7 {[%clk 0:01:04.8]} 22. c4 {[%clk
0:01:09.3]} 22... e6 {[%clk 0:00:46.7]} 23. b5 {[%clk 0:00:59.2]} 23... axb5
{[%clk 0:00:36.8]} 24. cxb5 {[%clk 0:00:59.1]} 1-0

[Event "Early-Titled-Tuesday-Blitz-November-28-2023"]
[Site "Chess.com"]
[Date "2023.11.28"]
[Round "10"]
[White "Shield12"]
[Black "FunnyDuck66"]
[Result "1-0"]
[WhiteElo "2913"]
[BlackElo "2551"]
[TimeControl "180+1"]
[EndTime "10:00:25 PST"]
[Termination "Shield12 won by resignation"]

1. e4 {[%clk 0:03:00.9]} 1... c6 {[%clk 0:02:57.6]} 2. Nf3 {[%clk 0:03:00.9]}
2... d5 {[%clk 0:02:57.3]} 3. Nc3 {[%clk 0:03:01.8]} 3... dxe4 {[%clk
0:02:56.4]} 4. Nxe4 {[%clk 0:03:02.7]} 4... Nf6 {[%clk 0:02:57.2]} 5. Qe2 {[%clk
0:03:02.7]} 5... Nxe4 {[%clk 0:02:56.8]} 6. Qxe4 {[%clk 0:03:03.6]} 6... Be6
{[%clk 0:02:57.4]} 7. c4 {[%clk 0:03:01.4]} 7... Nd7 {[%clk 0:02:56.9]} 8. d4
{[%clk 0:03:00.3]} 8... Nf6 {[%clk 0:02:55.3]} 9. Qf4 {[%clk 0:03:00.6]} 9... g6
{[%clk 0:02:53.4]} 10. Be2 {[%clk 0:03:00]} 10... Bg7 {[%clk 0:02:53.1]} 11. O-O
{[%clk 0:03:00.6]} 11... O-O {[%clk 0:02:52.9]} 12. Rd1 {[%clk 0:03:01.2]} 12...
b5 {[%clk 0:02:40.6]} 13. cxb5 {[%clk 0:02:57.4]} 13... cxb5 {[%clk 0:02:38.5]}
14. Bxb5 {[%clk 0:02:58.3]} 14... Bd5 {[%clk 0:02:35.4]} 15. Be2 {[%clk
0:02:56.5]} 15... Rc8 {[%clk 0:02:32.3]} 16. Ne5 {[%clk 0:02:51.9]} 16... Rc2
{[%clk 0:02:21.5]} 17. Bd3 {[%clk 0:02:51.2]} 17... Rc8 {[%clk 0:02:19.4]} 18.
Bd2 {[%clk 0:02:49.9]} 18... Qb6 {[%clk 0:02:15.2]} 19. b3 {[%clk 0:02:48.4]}
19... Qb7 {[%clk 0:02:07.2]} 20. f3 {[%clk 0:02:46]} 20... Nh5 {[%clk
0:01:48.9]} 21. Qe3 {[%clk 0:02:45.4]} 21... f6 {[%clk 0:01:40.2]} 22. Ng4
{[%clk 0:02:35.9]} 22... f5 {[%clk 0:01:39.6]} 23. Ne5 {[%clk 0:02:34.4]} 23...
f4 {[%clk 0:01:25.2]} 24. Qe2 {[%clk 0:02:33.3]} 24... Qb6 {[%clk 0:01:25.1]}
25. Qf2 {[%clk 0:02:30.3]} 25... Rfd8 {[%clk 0:01:23]} 26. Rac1 {[%clk
0:02:27.4]} 26... Rxc1 {[%clk 0:01:20.7]} 27. Rxc1 {[%clk 0:02:28.3]} 27... Ba8
{[%clk 0:01:20.5]} 28. Bc4+ {[%clk 0:02:27.5]} 28... e6 {[%clk 0:01:19.2]} 29.
Bc3 {[%clk 0:02:24.9]} 29... Nf6 {[%clk 0:01:15]} 30. Nd3 {[%clk 0:02:23.1]}
30... g5 {[%clk 0:01:00.3]} 31. Nc5 {[%clk 0:02:19.8]} 31... Nd5 {[%clk
0:00:58.8]} 32. Bb2 {[%clk 0:02:17.1]} 32... Kh8 {[%clk 0:00:46.3]} 33. Re1
{[%clk 0:02:15.9]} 33... Re8 {[%clk 0:00:43.3]} 34. h4 {[%clk 0:02:15]} 34... h6
{[%clk 0:00:43.3]} 35. hxg5 {[%clk 0:02:14.8]} 35... hxg5 {[%clk 0:00:44.2]} 36.
Ne4 {[%clk 0:02:12.7]} 36... Qd8 {[%clk 0:00:33.4]} 37. g3 {[%clk 0:02:05.8]}
37... Rf8 {[%clk 0:00:26.9]} 38. Qh2+ {[%clk 0:02:03.7]} 38... Kg8 {[%clk
0:00:27.3]} 39. Qh5 {[%clk 0:02:04.3]} 39... Ne3 {[%clk 0:00:06.4]} 40. Bxe6+
{[%clk 0:02:00.9]} 1-0

[Event "Early-Titled-Tuesday-Blitz-November-28-2023"]
[Site "Chess.com"]
[Date "2023.11.28"]
[Round "10"]
[White "Fonsofan"]
[Black "TRadjabov"]
[Result "1-0"]
[WhiteElo "2793"]
[BlackElo "3015"]
[TimeControl "180+1"]
[EndTime "10:00:29 PST"]
[Termination "Fonsofan won by resignation"]

1. e4 {[%clk 0:03:00.9]} 1... b6 {[%clk 0:02:58.2]} 2. d4 {[%clk 0:02:59.8]}
2... Bb7 {[%clk 0:02:58.9]} 3. Bd3 {[%clk 0:03:00.2]} 3... e6 {[%clk 0:02:58.6]}
4. c3 {[%clk 0:02:58.5]} 4... d6 {[%clk 0:02:58.2]} 5. Nf3 {[%clk 0:02:57.4]}
5... Nd7 {[%clk 0:02:58]} 6. O-O {[%clk 0:02:58]} 6... Be7 {[%clk 0:02:58.2]} 7.
Re1 {[%clk 0:02:58.3]} 7... g5 {[%clk 0:02:56.5]} 8. Nfd2 {[%clk 0:02:51.6]}
8... Ngf6 {[%clk 0:02:50.4]} 9. a4 {[%clk 0:02:52]} 9... a6 {[%clk 0:02:46]} 10.
Nf1 {[%clk 0:02:51.4]} 10... h6 {[%clk 0:02:22.7]} 11. Nbd2 {[%clk 0:02:48.8]}
11... Rg8 {[%clk 0:02:07.3]} 12. Ng3 {[%clk 0:02:45.4]} 12... g4 {[%clk
0:02:05.4]} 13. Qe2 {[%clk 0:02:36]} 13... h5 {[%clk 0:02:03.5]} 14. e5 {[%clk
0:02:36.5]} 14... dxe5 {[%clk 0:02:01.2]} 15. dxe5 {[%clk 0:02:37.4]} 15... Nxe5
{[%clk 0:02:01.4]} 16. Bc2 {[%clk 0:02:18.3]} 16... Qd5 {[%clk 0:01:44.9]} 17.
Nde4 {[%clk 0:02:18.6]} 17... h4 {[%clk 0:01:35.7]} 18. Nxf6+ {[%clk 0:02:16.2]}
18... Bxf6 {[%clk 0:01:34.8]} 19. Be4 {[%clk 0:02:16.8]} 19... hxg3 {[%clk
0:01:08.4]} 20. Bxd5 {[%clk 0:02:17]} 20... gxh2+ {[%clk 0:01:08.9]} 21. Kh1
{[%clk 0:02:17.3]} 21... Bxd5 {[%clk 0:01:09.7]} 22. Bf4 {[%clk 0:02:09.9]}
22... Ng6 {[%clk 0:01:09.5]} 23. Bg3 {[%clk 0:01:55.3]} 23... Ne7 {[%clk
0:00:49.4]} 24. Rad1 {[%clk 0:01:50.1]} 24... Bc6 {[%clk 0:00:49.4]} 25. Qc4
{[%clk 0:01:47.5]} 25... Rg5 {[%clk 0:00:27.5]} 26. Bh4 {[%clk 0:01:38.4]} 26...
Rc5 {[%clk 0:00:24.8]} 27. Qxg4 {[%clk 0:01:38.9]} 27... Bxh4 {[%clk 0:00:17.7]}
28. Qxh4 {[%clk 0:01:39.8]} 28... Ng6 {[%clk 0:00:18.3]} 29. Qf6 {[%clk
0:01:29.6]} 29... Bd5 {[%clk 0:00:16.2]} 30. b4 {[%clk 0:01:22.3]} 1-0

[Event "Early-Titled-Tuesday-Blitz-November-28-2023"]
[Site "Chess.com"]
[Date "2023.11.28"]
[Round "10"]
[White "JuniorJumper"]
[Black "InitiatingASC"]
[Result "1-0"]
[WhiteElo "2571"]
[BlackElo "2356"]
[TimeControl "180+1"]
[EndTime "10:00:29 PST"]
[Termination "JuniorJumper won by resignation"]

1. b3 {[%clk 0:02:49.6]} 1... b6 {[%clk 0:02:56.7]} 2. Bb2 {[%clk 0:02:50.5]}
2... Bb7 {[%clk 0:02:56.8]} 3. Nf3 {[%clk 0:02:51.2]} 3... Nf6 {[%clk
0:02:54.7]} 4. g3 {[%clk 0:02:50.9]} 4... e6 {[%clk 0:02:50.9]} 5. Bg2 {[%clk
0:02:51]} 5... Be7 {[%clk 0:02:51.2]} 6. O-O {[%clk 0:02:51.5]} 6... c5 {[%clk
0:02:51.4]} 7. d3 {[%clk 0:02:52.2]} 7... O-O {[%clk 0:02:50]} 8. Nbd2 {[%clk
0:02:52.7]} 8... d6 {[%clk 0:02:48.3]} 9. e4 {[%clk 0:02:52.5]} 9... Nbd7 {[%clk
0:02:48.5]} 10. Qe2 {[%clk 0:02:51.9]} 10... Re8 {[%clk 0:02:46.9]} 11. e5
{[%clk 0:02:51.9]} 11... dxe5 {[%clk 0:02:46.6]} 12. Nxe5 {[%clk 0:02:52.8]}
12... Nxe5 {[%clk 0:02:47]} 13. Bxb7 {[%clk 0:02:48.9]} 13... Neg4 {[%clk
0:02:46.2]} 14. Bxa8 {[%clk 0:02:47.2]} 14... Qxa8 {[%clk 0:02:46.3]} 15. Ne4
{[%clk 0:02:40.8]} 15... Qd5 {[%clk 0:02:38.6]} 16. h3 {[%clk 0:02:32]} 16...
Ne5 {[%clk 0:02:14.1]} 17. Rfe1 {[%clk 0:02:03.1]} 17... Nxe4 {[%clk 0:01:13.5]}
18. dxe4 {[%clk 0:01:55.2]} 18... Qd6 {[%clk 0:01:13.9]} 19. Rad1 {[%clk
0:01:49.3]} 19... Qc7 {[%clk 0:01:14]} 20. f4 {[%clk 0:01:45.3]} 20... Nc6
{[%clk 0:01:13.3]} 21. e5 {[%clk 0:01:32.2]} 21... Nb4 {[%clk 0:01:05.2]} 22.
Rd2 {[%clk 0:01:22.1]} 22... Nxa2 {[%clk 0:00:58.9]} 23. Red1 {[%clk 0:01:22]}
23... Nb4 {[%clk 0:00:55.1]} 24. Rd7 {[%clk 0:01:21.2]} 24... Qc6 {[%clk
0:00:53.6]} 25. Rxa7 {[%clk 0:01:17.3]} 25... b5 {[%clk 0:00:43.3]} 26. Qg2
{[%clk 0:01:07.6]} 26... Qxg2+ {[%clk 0:00:30.7]} 27. Kxg2 {[%clk 0:01:08.5]}
27... Nxc2 {[%clk 0:00:31.1]} 28. Rxe7 {[%clk 0:01:05.7]} 28... Ne3+ {[%clk
0:00:29.7]} 29. Kf3 {[%clk 0:01:04.6]} 1-0

[Event "Early-Titled-Tuesday-Blitz-November-28-2023"]
[Site "Chess.com"]
[Date "2023.11.28"]
[Round "10"]
[White "Kirill_Klukin"]
[Black "viktorskliarov"]
[Result "1-0"]
[WhiteElo "2852"]
[BlackElo "2640"]
[TimeControl "180+1"]
[EndTime "10:00:37 PST"]
[Termination "Kirill_Klukin won by resignation"]

1. d4 {[%clk 0:03:00.9]} 1... Nf6 {[%clk 0:02:59.6]} 2. Nf3 {[%clk 0:03:01]}
2... g6 {[%clk 0:02:59.7]} 3. e3 {[%clk 0:03:01.6]} 3... Bg7 {[%clk 0:02:59.9]}
4. Be2 {[%clk 0:03:02.4]} 4... O-O {[%clk 0:03:00.5]} 5. O-O {[%clk 0:03:03.3]}
5... d6 {[%clk 0:03:01.1]} 6. c4 {[%clk 0:03:03.7]} 6... c5 {[%clk 0:02:59.1]}
7. b3 {[%clk 0:03:02.3]} 7... Nc6 {[%clk 0:02:56.7]} 8. Bb2 {[%clk 0:03:02.9]}
8... cxd4 {[%clk 0:02:55.9]} 9. Nxd4 {[%clk 0:03:03.1]} 9... Bd7 {[%clk
0:02:51.7]} 10. Nd2 {[%clk 0:03:00.8]} 10... Qa5 {[%clk 0:02:50.9]} 11. a3
{[%clk 0:02:59.5]} 11... Rfc8 {[%clk 0:02:50.6]} 12. b4 {[%clk 0:02:59.4]} 12...
Qd8 {[%clk 0:02:51.2]} 13. N2b3 {[%clk 0:02:57.8]} 13... a5 {[%clk 0:02:36.2]}
14. Nxc6 {[%clk 0:02:54.4]} 14... bxc6 {[%clk 0:02:29.3]} 15. Nxa5 {[%clk
0:02:53]} 15... c5 {[%clk 0:02:14.7]} 16. Bf3 {[%clk 0:02:47.1]} 16... Ra7
{[%clk 0:02:11.5]} 17. Qe2 {[%clk 0:02:34.8]} 17... Qb6 {[%clk 0:01:54.4]} 18.
Bc3 {[%clk 0:02:28.5]} 18... Be6 {[%clk 0:01:44.3]} 19. Rab1 {[%clk 0:02:22.9]}
19... Nd7 {[%clk 0:01:37.5]} 20. Bxg7 {[%clk 0:02:03]} 20... Kxg7 {[%clk
0:01:37.2]} 21. Bd5 {[%clk 0:02:03.8]} 21... cxb4 {[%clk 0:01:13.9]} 22. axb4
{[%clk 0:01:59.7]} 22... Nf6 {[%clk 0:01:14]} 23. Bxe6 {[%clk 0:01:51]} 23...
fxe6 {[%clk 0:01:14]} 24. h3 {[%clk 0:01:51.7]} 24... Kf7 {[%clk 0:01:08.2]} 25.
c5 {[%clk 0:01:31.8]} 25... Qd8 {[%clk 0:00:43.4]} 26. Rfd1 {[%clk 0:01:28]}
26... Rxa5 {[%clk 0:00:24.2]} 27. bxa5 {[%clk 0:01:26.7]} 27... Rxc5 {[%clk
0:00:24.7]} 28. a6 {[%clk 0:01:25]} 28... Ra5 {[%clk 0:00:24.5]} 29. Ra1 {[%clk
0:01:24.3]} 29... Nd5 {[%clk 0:00:23.7]} 30. a7 {[%clk 0:01:23.9]} 30... Nc3
{[%clk 0:00:14.3]} 31. Qf3+ {[%clk 0:01:19.9]} 31... Kg7 {[%clk 0:00:14.5]} 32.
Rxa5 {[%clk 0:01:18]} 32... Qxa5 {[%clk 0:00:12.7]} 33. a8=Q {[%clk 0:01:18.3]}
1-0